bitfinex/quotes_SOLUSD_20220210
["timestamp","ask_amount","ask_price","bid_price","bid_amount"]
[1644513790188,6.0,112.4,112.34,34.68788646]
[1644513790390,13.3514,112.43,112.34,34.68788646]
[1644513790595,6.0,112.4,112.34,34.68788646]
[1644513791010,13.3514,112.43,112.34,34.68788646]
[1644513791211,6.0,112.4,112.34,34.68788646]
[1644513791411,51.9669463,112.43,112.34,34.68788646]
[1644513791610,57.9669463,112.43,112.34,34.68788646]
[1644513792414,64.9669463,112.43,112.34,34.68788646]
[1644513792614,39.83162292,112.41,112.34,34.68788646]
[1644513793015,39.83162292,112.41,112.32,4.449]
[1644513793219,4.449,112.4,112.32,4.449]
[1644513793615,55.9744,112.4,112.32,4.449]
[1644513794017,42.77612875,112.39,112.32,4.449]
[1644513794217,49.77612875,112.39,112.27,24.9451]
[1644513794417,11.45,112.38,112.24,22.6909]
[1644513794619,11.45,112.38,112.22,10.704]
[1644513794620,13.3631,112.33,112.22,10.704]
[1644513795019,59.6619,112.36,112.22,4.477]
[1644513795219,7.0,112.33,112.23,34.14286752]
[1644513795421,43.06047172,112.32,112.23,34.14286752]
[1644513795827,13.3654,112.31,112.23,34.14286752]
[1644513796825,51.5491,112.34,112.23,34.14286752]
[1644513797024,48.76035516,112.33,112.23,34.14286752]
[1644513797426,62.12355516,112.33,112.23,34.14286752]
[1644513797625,13.3632,112.33,112.23,34.14286752]
[1644513797825,13.3632,112.33,112.24,4.453]
[1644513798027,55.9041,112.37,112.24,4.453]
[1644513798225,48.9041,112.37,112.24,4.453]
[1644513798428,7.0,112.35,112.23,34.14286752]
[1644513798627,13.3638,112.32,112.23,34.14286752]
[1644513798826,13.3638,112.32,112.23,38.59586752]
[1644513799327,13.3638,112.32,112.23,34.14286752]
[1644513800228,49.5864738,112.32,112.23,47.50456752]
[1644513800826,6.0,112.32,112.23,47.50456752]
[1644513801428,13.3626,112.33,112.23,47.50456752]
[1644513801628,6.0,112.32,112.23,47.50456752]
[1644513801827,44.99695151,112.32,112.23,47.50456752]
[1644513803229,58.36055151,112.32,112.23,47.50456752]
[1644513803935,19.3636,112.32,112.23,47.50456752]
[1644513804131,6.0,112.32,112.23,47.50456752]
[1644513804332,13.3614,112.34,112.23,62.88756752]
[1644513804532,13.3614,112.34,112.24,4.452]
[1644513804732,13.3614,112.34,112.24,15.132]
[1644513804932,13.3614,112.34,112.25,11.88106018]
[1644513805232,48.18810683,112.33,112.25,25.24066018]
[1644513805932,13.3614,112.34,112.25,25.24066018]
[1644513808134,19.3614,112.34,112.25,25.24066018]
[1644513809433,41.51996894,112.33,112.25,25.24066018]
[1644513809634,41.51996894,112.33,112.23,13.3622]
[1644513809635,54.88186894,112.33,112.23,13.3622]
[1644513809833,41.51996894,112.33,112.23,13.3622]
[1644513810034,41.51996894,112.33,112.22,0.024]
[1644513810534,43.75119048,112.33,112.22,0.024]
[1644513810735,43.75119048,112.33,112.22,34.19812893]
[1644513810934,41.51996894,112.33,112.22,34.19812893]
[1644513811335,41.51996894,112.33,112.22,34.17412893]
[1644513811736,13.3656,112.3,112.22,34.17412893]
[1644513812936,41.07772624,112.29,112.22,34.17412893]
[1644513813743,13.3656,112.3,112.22,34.17412893]
[1644513815041,13.3656,112.3,112.22,47.53862893]
[1644513815242,19.3656,112.3,112.22,47.53862893]
[1644513815840,17.7635,112.32,112.22,147.09862893]
[1644513816041,6.0,112.32,112.24,11.84979877]
[1644513816243,7.0,112.34,112.24,25.21089877]
[1644513816640,13.0,112.34,112.24,25.21089877]
[1644513816846,13.3614,112.33,112.24,25.21089877]
[1644513817044,13.3614,112.33,112.24,25.46089877]
[1644513817244,49.68271179,112.34,112.24,25.46089877]
[1644513817646,6.0,112.34,112.24,25.46089877]
[1644513818144,36.707,112.36,112.26,13.3579]
[1644513818547,42.707,112.36,112.26,13.3579]
[1644513818748,36.28602904,112.35,112.26,13.3579]
[1644513818945,46.09495593,112.33,112.24,25.21189877]
[1644513819247,4.417,112.32,112.2,4.476]
[1644513819445,4.417,112.32,112.17,23.6166]
[1644513819446,4.417,112.32,112.21,59.491]
[1644513819646,10.417,112.32,112.21,59.491]
[1644513819845,17.417,112.32,112.21,59.491]
[1644513820247,40.47145212,112.31,112.22,32.87066068]
[1644513820849,13.3659,112.29,112.22,32.87066068]
[1644513822651,13.3659,112.29,112.22,46.23586068]
[1644513825452,13.3659,112.29,112.22,59.58756068]
[1644513825753,13.3659,112.29,112.22,46.23586068]
[1644513826252,19.3659,112.29,112.22,46.23586068]
[1644513826752,37.87290735,112.28,112.22,13.3652]
[1644513826953,37.87290735,112.28,112.2,4.453]
[1644513827954,44.5646,112.29,112.21,41.54107105]
[1644513828954,13.3688,112.27,112.21,41.54107105]
[1644513829157,44.5646,112.29,112.21,41.54107105]
[1644513829958,50.5646,112.29,112.21,41.54107105]
[1644513830358,45.37797707,112.28,112.21,41.54107105]
[1644513830756,13.369,112.26,112.21,41.54107105]
[1644513830956,13.369,112.26,112.19,13.392]
[1644513831159,89.94577707,112.28,112.18,23.0069]
[1644513831761,13.3711,112.25,112.18,23.0069]
[1644513831958,13.3711,112.25,112.19,33.86634154]
[1644513832482,46.40114333,112.26,112.19,33.86634154]
[1644513832684,46.40114333,112.26,112.17,26.661]
[1644513832884,46.40114333,112.26,112.16,4.478]
[1644513833284,53.40114333,112.26,112.16,4.454]
[1644513833883,53.40114333,112.26,112.17,37.86943845]
[1644513834784,13.3749,112.21,112.17,37.86943845]
[1644513835187,31.9639,112.26,112.17,37.86943845]
[1644513835385,24.9639,112.26,112.17,37.86943845]
[1644513835785,30.9639,112.26,112.17,37.86943845]
[1644513836284,47.55560066,112.27,112.17,37.86943845]
[1644513836485,47.55560066,112.27,112.17,55.69553845]
[1644513836685,47.55560066,112.27,112.17,66.62553845]
[1644513837487,23.0106,112.28,112.17,66.62553845]
[1644513837684,13.3675,112.27,112.17,66.64953845]
[1644513837886,13.3675,112.27,112.17,66.62553845]
[1644513838587,67.28999917,112.28,112.17,66.62553845]
[1644513838787,67.28999917,112.28,112.17,66.64953845]
[1644513838988,73.28999917,112.28,112.18,88.63]
[1644513839189,19.3666,112.28,112.19,32.20168925]
[1644513839391,19.3666,112.28,112.19,121.08168925]
[1644513840591,6.0,112.28,112.19,121.08168925]
[1644513840794,6.0,112.29,112.19,121.08168925]
[1644513840992,6.0,112.29,112.21,88.63]
[1644513841193,376.40895311,112.35,112.22,15.134]
[1644513841394,376.40895311,112.35,112.23,88.63]
[1644513841595,47.05899727,112.34,112.24,137.68814444]
[1644513841794,47.05899727,112.34,112.24,137.93814444]
[1644513842198,47.05899727,112.34,112.24,133.48614444]
[1644513842400,47.05899727,112.34,112.24,146.84484444]
[1644513842794,47.05899727,112.34,112.24,58.21484444]
[1644513843394,53.8166,112.37,112.24,58.21484444]
[1644513843599,13.3584,112.35,112.26,13.358]
[1644513843795,13.3584,112.35,112.26,24.038]
[1644513844497,45.1990122,112.34,112.27,12.09778326]
[1644513844697,45.1990122,112.34,112.27,25.45578326]
[1644513844895,13.3584,112.35,112.27,25.45578326]
[1644513845195,6.0,112.37,112.28,99.31]
[1644513845398,6.0,112.37,112.28,104.01]
[1644513845596,396.02443671,112.42,112.28,104.01]
[1644513845899,39.72306699,112.41,112.29,47.28134444]
[1644513846095,39.72306699,112.41,112.31,12.09778326]
[1644513846295,39.72306699,112.41,112.33,33.92614444]
[1644513847795,39.72306699,112.41,112.33,47.27704444]
[1644513847997,402.38729424,112.42,112.33,47.27704444]
[1644513848198,389.03579424,112.42,112.33,58.20704444]
[1644513848397,389.03579424,112.42,112.33,57.95704444]
[1644513849002,35.84014531,112.41,112.33,57.95704444]
[1644513849400,13.3494,112.43,112.33,57.95704444]
[1644513849603,13.97264247,112.46,112.33,58.20704444]
[1644513849801,4.434,112.46,112.34,93.078]
[1644513850000,18.27580336,112.47,112.35,10.68]
[1644513850204,15.73716089,112.47,112.36,13.3466]
[1644513850402,42.2564273,112.45,112.36,13.3466]
[1644513850604,42.78398446,112.43,112.35,22.77778326]
[1644513850800,42.78398446,112.43,112.33,10.68]
[1644513851000,4.449,112.42,112.33,10.68]
[1644513851200,6.68022154,112.42,112.3,10.68]
[1644513851801,46.50351409,112.41,112.31,42.57895329]
[1644513852005,44.89098333,112.39,112.31,42.57895329]
[1644513853906,58.24578333,112.39,112.3,24.0338]
[1644513854306,44.89098333,112.39,112.29,4.45]
[1644513854507,4.378,112.38,112.29,4.45]
[1644513854905,42.81068141,112.37,112.3,37.21286895]
[1644513856106,17.7768,112.38,112.3,37.21286895]
[1644513856307,6.0,112.39,112.3,37.21286895]
[1644513856508,6.0,112.39,112.3,48.14286895]
[1644513857006,6.0,112.39,112.3,61.49756895]
[1644513857209,41.93957745,112.41,112.32,8.81105875]
[1644513857407,55.29197745,112.41,112.32,8.81105875]
[1644513857608,13.3524,112.41,112.32,8.81105875]
[1644513858008,396.28664957,112.42,112.33,88.63]
[1644513858216,396.28664957,112.42,112.35,88.63]
[1644513858429,396.28664957,112.42,112.36,10.68]
[1644513858608,396.28664957,112.42,112.36,47.89286895]
[1644513858809,396.28664957,112.42,112.36,10.68]
[1644513859409,6.0,112.42,112.36,10.68]
[1644513859813,48.01164096,112.45,112.36,10.68]
[1644513860012,4.377,112.44,112.36,10.68]
[1644513860210,48.75873939,112.43,112.36,10.68]
[1644513860811,62.10883939,112.43,112.36,10.68]
[1644513861214,13.3501,112.43,112.36,10.68]
[1644513861413,4.361,112.45,112.36,10.68]
[1644513861610,97.4796,112.47,112.36,10.68]
[1644513862011,13.3484,112.45,112.36,24.0277]
[1644513862215,57.89261199,112.45,112.36,24.0277]
[1644513863012,63.89261199,112.45,112.36,24.0277]
[1644513863413,37.79291473,112.43,112.36,24.0277]
[1644513863812,4.448,112.44,112.36,24.0277]
[1644513864214,4.448,112.44,112.36,10.68]
[1644513864616,4.448,112.44,112.35,4.448]
[1644513864815,10.434,112.45,112.34,13.3496]
[1644513865017,9.23122154,112.44,112.31,28.1701]
[1644513865216,13.3533,112.4,112.32,10.68]
[1644513865414,55.43466671,112.4,112.33,13.05701633]
[1644513866818,55.43466671,112.4,112.32,10.68]
[1644513867018,13.3543,112.39,112.31,13.3529]
[1644513867219,42.08136671,112.4,112.29,72.2154]
[1644513867418,42.08136671,112.4,112.29,78.2154]
[1644513867620,55.08136671,112.4,112.29,78.2154]
[1644513867817,57.31258825,112.4,112.29,72.2154]
[1644513868020,13.3579,112.36,112.29,58.8599]
[1644513868219,51.178,112.39,112.26,15.13]
[1644513868420,2.23122154,112.35,112.26,4.45]
[1644513868622,4.45,112.34,112.26,4.45]
[1644513868821,37.12558921,112.34,112.27,5.16213359]
[1644513869221,50.48668921,112.34,112.27,5.16213359]
[1644513869621,37.12558921,112.34,112.27,5.16213359]
[1644513870525,50.48568921,112.34,112.26,4.45]
[1644513870726,37.12558921,112.34,112.25,24.0404]
[1644513870929,39.35681075,112.34,112.23,58.2406]
[1644513871126,4.418,112.33,112.19,28.6779]
[1644513871325,4.418,112.33,112.2,4.453]
[1644513871529,44.564,112.3,112.18,51.08796795]
[1644513871726,35.84209767,112.28,112.18,61.79196795]
[1644513872126,2.23122154,112.3,112.18,173.66796795]
[1644513872326,2.53864247,112.32,112.19,19.2572755]
[1644513872327,9.53864247,112.32,112.19,19.2572755]
[1644513872528,13.3637,112.31,112.2,10.704]
[1644513872730,7.0,112.32,112.21,0.024]
[1644513872927,7.0,112.32,112.21,15.157]
[1644513873126,43.52557432,112.31,112.22,8.30555975]
[1644513873748,13.3672,112.28,112.21,0.024]
[1644513873950,4.282,112.3,112.19,24.0875]
[1644513874151,4.282,112.3,112.2,0.024]
[1644513874359,6.51322154,112.3,112.19,0.024]
[1644513874555,2.23122154,112.3,112.19,10.704]
[1644513874754,48.3268,112.32,112.2,19.52010116]
[1644513874956,48.3268,112.32,112.21,10.704]
[1644513875155,48.3268,112.32,112.22,4.453]
[1644513875356,48.3268,112.32,112.21,12.38200116]
[1644513875555,48.3268,112.32,112.21,17.08500116]
[1644513875756,48.3268,112.32,112.22,9.33457261]
[1644513875956,13.3625,112.33,112.23,4.453]
[1644513876156,7.0,112.36,112.23,16.81100116]
[1644513876354,7.0,112.36,112.23,6.38100116]
[1644513876559,7.0,112.36,112.23,6.13100116]
[1644513876754,45.61939454,112.35,112.24,34.14477599]
[1644513876955,50.07139454,112.35,112.24,44.82477599]
[1644513877360,50.07139454,112.35,112.24,46.50277715]
[1644513877555,63.43129454,112.35,112.24,60.11507715]
[1644513877756,58.97929454,112.35,112.24,60.11507715]
[1644513878456,58.97929454,112.35,112.24,58.43707599]
[1644513878659,134.23122154,112.34,112.21,0.024]
[1644513878855,134.23122154,112.34,112.2,1.67800116]
[1644513878856,11.13,112.33,112.2,1.67800116]
[1644513879062,7.0,112.28,112.08,2.52009394]
[1644513879256,15.066,112.27,112.09,10.68]
[1644513879555,55.3980199,112.26,112.11,40.07753352]
[1644513879756,13.3748,112.24,112.11,40.07753352]
[1644513879957,49.60382205,112.24,112.11,40.07753352]
[1644513880858,55.60382205,112.24,112.13,5.94639418]
[1644513881059,19.3748,112.24,112.14,4.456]
[1644513881461,19.3748,112.24,112.14,4.706]
[1644513882061,63.22004881,112.24,112.15,40.07753352]
[1644513882261,67.67604881,112.24,112.15,40.07753352]
[1644513882466,23.8308,112.24,112.15,40.07753352]
[1644513883364,6.0,112.24,112.15,128.70753352]
[1644513883563,6.0,112.24,112.15,128.95753352]
[1644513883863,4.434,112.28,112.15,133.41353352]
[1644513884066,4.434,112.28,112.15,128.95753352]
[1644513884474,23.8036,112.28,112.15,128.95753352]
[1644513884696,58.19616404,112.28,112.17,88.63]
[1644513884867,58.19616404,112.28,112.18,94.57639418]
[1644513885069,4.434,112.28,112.18,94.57639418]
[1644513885267,4.434,112.28,112.18,94.82639418]
[1644513885467,4.412,112.29,112.18,94.82639418]
[1644513885669,23.7083,112.3,112.19,4.454]
[1644513885868,555.83166417,112.31,112.19,4.454]
[1644513886068,39.78889453,112.29,112.2,40.07753352]
[1644513887170,39.78889453,112.29,112.2,128.70753352]
[1644513887772,13.3673,112.3,112.2,128.70753352]
[1644513888674,59.24901016,112.3,112.2,128.70753352]
[1644513888872,65.24901016,112.3,112.2,128.70753352]
[1644513889472,65.24901016,112.3,112.2,40.07753352]
[1644513890274,44.51615642,112.28,112.2,40.07753352]
[1644513890976,4.434,112.29,112.2,128.70753352]
[1644513891276,6.0,112.3,112.2,40.07753352]
[1644513891680,6.0,112.3,112.2,40.32753352]
[1644513892197,565.28168809,112.31,112.2,128.95753352]
[1644513892502,571.28168809,112.31,112.22,5.94639418]
[1644513894200,530.23100937,112.31,112.22,5.94639418]
[1644513894400,524.23100937,112.31,112.23,99.31]
[1644513894800,524.23100937,112.31,112.23,99.56]
[1644513895200,39.19395039,112.35,112.25,88.63]
[1644513895399,7.0,112.37,112.26,10.68]
[1644513895810,7.0,112.37,112.26,10.93]
[1644513896401,7.0,112.37,112.27,6.82227542]
[1644513896602,44.17291609,112.36,112.27,95.45227542]
[1644513897002,6.0,112.37,112.27,95.45227542]
[1644513897203,6.0,112.37,112.29,88.63]
[1644513897401,6.0,112.37,112.29,99.56]
[1644513897802,6.0,112.37,112.29,111.005]
[1644513898006,43.10807272,112.38,112.3,39.20165228]
[1644513898203,6.0,112.37,112.3,39.20165228]
[1644513898407,43.10807272,112.38,112.3,39.20165228]
[1644513898705,49.10807272,112.38,112.3,39.20165228]
[1644513899508,53.55807272,112.38,112.26,27.3708]
[1644513899707,58.32793673,112.38,112.26,10.68]
[1644513899906,7.0,112.36,112.26,10.68]
[1644513900408,9.23122154,112.36,112.26,10.68]
[1644513900612,1.26942884,112.34,112.27,37.11116772]
[1644513901711,40.83798762,112.33,112.25,10.68]
[1644513901908,40.83798762,112.33,112.24,4.452]
[1644513902108,47.47120916,112.33,112.23,24.3911]
[1644513902311,1.26942884,112.32,112.21,13.2385]
[1644513902510,1.26942884,112.32,112.21,17.6915]
[1644513902713,1.26942884,112.32,112.22,39.53269358]
[1644513902909,1.26942884,112.32,112.23,93.083]
[1644513903118,5.68942884,112.33,112.23,88.63]
[1644513903309,1.26942884,112.34,112.24,10.68]
[1644513903810,1.26942884,112.34,112.25,6.49123412]
[1644513904008,7.26942884,112.34,112.25,95.12123412]
[1644513904209,1.26942884,112.34,112.25,95.12123412]
[1644513904509,1.26942884,112.34,112.25,105.80123412]
[1644513904711,7.26942884,112.34,112.25,106.05123412]
[1644513905009,7.26942884,112.34,112.25,112.05123412]
[1644513905208,6.0,112.34,112.25,23.17123412]
[1644513905409,1.26942884,112.33,112.25,23.17123412]
[1644513905910,1.26942884,112.34,112.25,23.42123412]
[1644513906115,1.26942884,112.37,112.26,4.452]
[1644513906312,1.26942884,112.37,112.27,10.68]
[1644513906514,1.26942884,112.37,112.28,4.45]
[1644513906714,1.26942884,112.38,112.29,6.49123412]
[1644513906915,1.3014988,112.38,112.31,37.89729934]
[1644513907114,7.26942884,112.38,112.31,37.89729934]
[1644513907413,6.0,112.38,112.31,37.89729934]
[1644513907613,7.26942884,112.38,112.31,37.89729934]
[1644513907815,1.26942884,112.38,112.31,37.89729934]
[1644513908815,1.26942884,112.39,112.31,37.89729934]
[1644513909415,1.26942884,112.38,112.31,37.89729934]
[1644513910018,5.69142884,112.39,112.31,37.89729934]
[1644513910218,1.26942884,112.39,112.31,37.89729934]
[1644513911323,1.26942884,112.38,112.31,37.89729934]
[1644513911718,1.26942884,112.39,112.31,37.89729934]
[1644513911918,1.26942884,112.39,112.31,126.52729934]
[1644513912117,1.26942884,112.39,112.31,126.77729934]
[1644513912320,1.3014988,112.4,112.31,137.45729934]
[1644513912517,1.26942884,112.4,112.31,137.45729934]
[1644513912718,7.26942884,112.4,112.31,137.45729934]
[1644513913519,6.0,112.4,112.31,141.90729934]
[1644513913822,1.3014988,112.41,112.31,141.90729934]
[1644513914121,7.3014988,112.41,112.31,141.90729934]
[1644513914319,1.3014988,112.41,112.31,141.90729934]
[1644513914721,1.26942884,112.41,112.31,141.90729934]
[1644513915322,1.26942884,112.41,112.31,154.92469934]
[1644513915521,1.26942884,112.42,112.31,199.41559934]
[1644513915722,0.03206996,112.41,112.31,199.41559934]
[1644513915921,45.76519725,112.42,112.31,194.96559934]
[1644513916124,0.03206996,112.41,112.31,200.96559934]
[1644513916324,1.3014988,112.41,112.31,160.67369934]
[1644513916522,1.3014988,112.41,112.31,154.92369934]
[1644513917923,0.8014988,112.41,112.31,154.92369934]
[1644513918129,0.8014988,112.41,112.31,168.27339934]
[1644513918323,0.8014988,112.41,112.31,163.82439934]
[1644513918725,0.8014988,112.41,112.31,169.82439934]
[1644513918927,0.03206996,112.41,112.31,169.82439934]
[1644513919125,0.03206996,112.42,112.31,169.82439934]
[1644513919724,38.56879104,112.43,112.31,169.82439934]
[1644513919925,0.03206996,112.42,112.31,169.82439934]
[1644513921327,0.03206996,112.42,112.33,110.10512836]
[1644513921527,38.56879104,112.43,112.33,120.78512836]
[1644513921926,38.56879104,112.43,112.33,121.03512836]
[1644513922727,44.56879104,112.43,112.33,121.03512836]
[1644513923327,6.03206996,112.43,112.33,121.03512836]
[1644513923726,0.03206996,112.43,112.35,88.63]
[1644513923927,0.03206996,112.45,112.35,99.31]
[1644513924129,532.67513416,112.46,112.35,99.56]
[1644513924329,43.04395655,112.45,112.36,126.52729934]
[1644513925228,546.02123416,112.46,112.36,126.52729934]
[1644513925428,484.29693416,112.46,112.36,150.55289934]
[1644513925632,481.75829169,112.46,112.36,156.80289934]
[1644513925833,481.72622173,112.46,112.37,4.448]
[1644513926030,481.72622173,112.46,112.38,99.31]
[1644513926230,481.75829169,112.46,112.39,8.12662836]
[1644513926431,481.72622173,112.46,112.4,10.68]
[1644513926638,481.72622173,112.46,112.42,88.63]
[1644513926832,481.72622173,112.46,112.43,20.45883921]
[1644513927034,481.72622173,112.46,112.44,3.15636584]
[1644513927332,0.03206996,112.5,112.45,36.24508849]
[1644513927532,41.22994924,112.52,112.45,36.24508849]
[1644513927735,6.0,112.52,112.45,36.24508849]
[1644513928131,2.53864247,112.53,112.45,36.24508849]
[1644513928332,5.07156168,112.53,112.45,36.24508849]
[1644513928531,8.53864247,112.53,112.45,36.24508849]
[1644513928731,43.64479444,112.52,112.45,36.24508849]
[1644513929137,8.53864247,112.53,112.45,36.24508849]
[1644513929633,6.0,112.53,112.45,36.24508849]
[1644513929831,15.90711243,112.54,112.45,36.24508849]
[1644513930033,28.90711243,112.54,112.45,36.24508849]
[1644513930231,15.57071243,112.54,112.45,60.51008849]
[1644513930633,13.03206996,112.54,112.45,60.51008849]
[1644513931134,13.0,112.54,112.45,60.51008849]
[1644513931535,13.0,112.54,112.45,60.26008849]
[1644513931739,13.0,112.54,112.45,46.92508849]
[1644513931936,4.425,112.53,112.45,46.92508849]
[1644513932336,2.53864247,112.54,112.45,135.55508849]
[1644513932535,55.26518258,112.55,112.45,135.80508849]
[1644513932737,55.29725254,112.55,112.45,149.13978849]
[1644513933142,52.75861007,112.55,112.45,148.88978849]
[1644513933340,52.75861007,112.55,112.45,149.13978849]
[1644513934368,52.75861007,112.55,112.45,148.88978849]
[1644513934565,66.09351007,112.55,112.45,60.50978849]
[1644513934766,4.444,112.54,112.45,46.92508849]
[1644513935165,11.444,112.54,112.45,36.24508849]
[1644513935870,19.337,112.54,112.45,36.24508849]
[1644513936072,6.0,112.54,112.45,46.92508849]
[1644513936268,0.03206996,112.55,112.45,47.17508849]
[1644513936472,9.53864247,112.56,112.45,47.17508849]
[1644513936473,9.57071243,112.56,112.46,93.074]
[1644513936668,0.03206996,112.55,112.47,10.68]
[1644513936867,493.9521018,112.57,112.47,24.0108]
[1644513936868,4.44906996,112.56,112.47,24.0108]
[1644513937069,4.417,112.56,112.47,24.0108]
[1644513937265,35.44887265,112.55,112.47,24.0108]
[1644513937671,0.03206996,112.57,112.47,24.0108]
[1644513937866,0.03206996,112.58,112.47,112.6408]
[1644513938071,19.36416996,112.58,112.47,112.6408]
[1644513938268,19.36416996,112.58,112.47,112.8908]
[1644513938668,43.79784165,112.57,112.47,112.8908]
[1644513938868,43.79784165,112.57,112.48,4.442]
[1644513939067,43.79784165,112.57,112.49,9.77883921]
[1644513939468,43.79784165,112.57,112.48,4.442]
[1644513939673,54.23184165,112.57,112.45,10.68]
[1644513939871,0.03206996,112.56,112.44,4.442]
[1644513940069,0.03206996,112.56,112.44,23.7787]
[1644513940271,0.03206996,112.56,112.45,99.31]
[1644513940469,6.03206996,112.57,112.46,4.444]
[1644513940668,6.0,112.57,112.47,10.68]
[1644513940870,0.03206996,112.56,112.47,10.93]
[1644513941073,0.03206996,112.57,112.48,40.1358415]
[1644513941275,13.36436996,112.58,112.48,53.7171415]
[1644513941878,19.36436996,112.58,112.48,53.7171415]
[1644513942279,6.03206996,112.58,112.49,10.68]
[1644513942478,6.0,112.58,112.51,13.3269]
[1644513942679,0.03206996,112.6,112.52,16.5680862]
[1644513942877,0.03206996,112.61,112.52,16.5680862]
[1644513943077,12.94564247,112.61,112.52,16.5680862]
[1644513943277,15.46640564,112.61,112.52,5.8880862]
[1644513943477,23.7353,112.61,112.52,5.8880862]
[1644513944079,19.3283,112.61,112.52,5.8880862]
[1644513945181,23.7163,112.61,112.5,4.441]
[1644513945380,29.58516953,112.61,112.48,12.81]
[1644513945581,5.05787839,112.6,112.48,12.81]
[1644513945783,0.03206996,112.59,112.48,12.81]
[1644513945984,0.03206996,112.59,112.48,12.31]
[1644513946183,0.03206996,112.6,112.49,32.63490967]
[1644513946390,13.3315,112.58,112.49,45.96550967]
[1644513946587,4.47406996,112.6,112.5,88.63]
[1644513946785,0.03206996,112.6,112.51,12.81]
[1644513946985,0.03206996,112.61,112.51,12.81]
[1644513947191,7.03206996,112.62,112.52,4.442]
[1644513947391,0.03206996,112.61,112.53,12.81]
[1644513947586,0.03206996,112.62,112.54,4.441]
[1644513947791,525.76290592,112.64,112.55,12.81]
[1644513947987,0.03206996,112.63,112.56,13.38901803]
[1644513948187,525.73083596,112.64,112.57,12.81]
[1644513948387,525.73083596,112.64,112.56,13.38901803]
[1644513948787,531.73083596,112.64,112.56,13.38901803]
[1644513948989,531.73083596,112.64,112.55,12.81]
[1644513949188,4.43,112.63,112.5,4.44]
[1644513949487,7.00071243,112.63,112.51,12.81]
[1644513949687,7.00071243,112.63,112.5,17.25]
[1644513949989,13.3294,112.61,112.5,30.5794]
[1644513950287,4.45706996,112.61,112.5,4.44]
[1644513950587,17.26706996,112.61,112.5,4.44]
[1644513950988,13.3345,112.56,112.5,4.44]
[1644513951186,4.42,112.55,112.43,12.81]
[1644513951387,4.45206996,112.55,112.43,18.81]
[1644513951593,0.03206996,112.55,112.43,23.254]
[1644513951786,0.03206996,112.56,112.43,23.254]
[1644513951995,0.03206996,112.54,112.43,23.254]
[1644513952213,0.03206996,112.56,112.44,38.31691875]
[1644513952389,0.03206996,112.56,112.46,13.3315]
[1644513952788,0.03206996,112.56,112.46,18.81]
[1644513953588,4.47606996,112.56,112.46,18.81]
[1644513953789,13.3355,112.55,112.46,18.81]
[1644513954192,2.23122154,112.55,112.43,4.444]
[1644513954390,4.434,112.54,112.4,37.4172]
[1644513954690,0.03206996,112.53,112.42,0.25]
[1644513954891,17.7642,112.52,112.4,56.7572]
[1644513955092,0.03206996,112.51,112.41,39.37815714]
[1644513955290,0.03206996,112.53,112.42,17.256]
[1644513955493,0.03206996,112.51,112.42,19.3839787]
[1644513955693,0.03206996,112.53,112.43,14.67732371]
[1644513955893,0.03206996,112.55,112.44,42.069]
[1644513956094,34.93404163,112.55,112.45,6.64577056]
[1644513956294,34.96611159,112.55,112.46,12.81]
[1644513956496,34.93404163,112.55,112.46,12.81]
[1644513956696,2.23122154,112.54,112.45,6.64577056]
[1644513956899,4.385,112.53,112.4,60.259]
[1644513957096,0.03206996,112.53,112.41,4.445]
[1644513957296,13.37136996,112.52,112.42,13.3388]
[1644513957495,13.3393,112.52,112.42,26.1488]
[1644513957699,19.37136996,112.52,112.42,26.1488]
[1644513957995,19.37136996,112.52,112.43,42.14159369]
[1644513958197,6.0,112.52,112.43,68.28889369]
[1644513958395,0.03206996,112.53,112.43,68.53889369]
[1644513958596,40.75234223,112.51,112.44,4.445]
[1644513958797,0.03206996,112.53,112.43,68.53889369]
[1644513958997,6.03206996,112.54,112.44,88.63]
[1644513959196,0.03206996,112.53,112.46,101.9633]
[1644513959400,6.0,112.54,112.47,12.81]
[1644513959401,0.03206996,112.54,112.47,12.81]
[1644513959602,8.57071243,112.56,112.47,12.81]